[Event "FIDE Womens Grand Swiss 2021"]
[Site "Riga"]
[Date "2021.11.05"]
[Round "9.23"]
[White "Padmini, Rout"]
[Black "Hoang, Thanh Trang"]
[Result "1/2-1/2"]
[ECO "A87"]
[WhiteElo "2380"]
[BlackElo "2380"]
[Annotator "ChessBase"]
[PlyCount "47"]
[EventDate "2021.10.27"]
[EventType "swiss"]
[EventCountry "LAT"]
[Tiebreak "Cut1 Buchholz+Sonneborn-Berger (Swiss)"]
[SourceTitle "playchess.com"]
[Source "ChessBase"]
[SourceQuality "1"]
[TimeControl "40/6000+30:20/3000+30:900+30"]

1. Nf3 {[%emt 0:10:04]} f5 {[%emt 0:10:26]} 2. g3 {[%emt 0:01:31]} Nf6 {
[%emt 0:00:24]} 3. Bg2 {[%emt 0:00:10]} g6 {[%emt 0:00:52]} 4. O-O {[%emt 0:00:
22]} Bg7 {[%emt 0:00:16]} 5. d4 {[%emt 0:00:09]} O-O {[%emt 0:00:59]} 6. c4 {
[%emt 0:00:29]} d6 {[%emt 0:00:48]} 7. b3 {[%emt 0:01:39]} e5 {[%emt 0:02:40]}
8. dxe5 {[%emt 0:00:15]} dxe5 {[%emt 0:02:05]} 9. Ba3 {[%emt 0:09:07]} Qxd1 {
[%emt 0:03:42]} 10. Rxd1 {[%emt 0:00:03]} Re8 {[%emt 0:01:21]} 11. Nc3 {
[%emt 0:01:29]} c6 {[%emt 0:04:30]} 12. e4 {[%emt 0:06:10]} f4 {[%emt 0:09:05]}
13. Bd6 {[%emt 0:02:24]} Bg4 {[%emt 0:01:49]} 14. h3 {[%emt 0:05:44]} Bxf3 {
[%emt 0:00:22]} 15. Bxf3 {[%emt 0:00:02]} Nbd7 {[%emt 0:09:43]} 16. Rac1 {
[%emt 0:04:33]} fxg3 {[%emt 0:05:22]} 17. fxg3 {[%emt 0:00:02]} Bh6 {[%emt 0:
01:48]} 18. Rc2 {[%emt 0:00:07]} Be3+ {[%emt 0:02:05]} 19. Kg2 {[%emt 0:00:03]}
Rad8 {[%emt 0:03:00]} 20. Bc7 {[%emt 0:03:22]} Rc8 {[%emt 0:00:53]} 21. Bd6 {
[%emt 0:00:28]} Rcd8 {[%emt 0:04:16]} 22. Bc7 {[%emt 0:02:18]} Rc8 {[%emt 0:00:
08]} 23. Bd6 {[%emt 0:00:07]} Rcd8 {[%emt 0:06:35]} 24. Bc7 {[%emt 0:01:14]}
1/2-1/2

[Event "FIDE Womens Grand Swiss 2021"]
[Site "Riga"]
[Date "2021.11.05"]
[Round "9.24"]
[White "Kamalidenova, Meruert"]
[Black "February, Jesse Nikki"]
[Result "1-0"]
[ECO "C10"]
[WhiteElo "2339"]
[BlackElo "1857"]
[Annotator "NA"]
[PlyCount "77"]
[EventDate "2021.10.27"]
[EventType "swiss"]
[EventCountry "LAT"]
[Tiebreak "Cut1 Buchholz+Sonneborn-Berger (Swiss)"]
[SourceTitle "playchess.com"]
[Source "ChessBase"]
[SourceQuality "1"]
[TimeControl "40/6000+30:20/3000+30:900+30"]

1. e4 {[%emt 0:10:06]} e6 {[%emt 0:10:28]} 2. d4 {[%emt 0:00:08]} d5 {[%emt 0:
00:14]} 3. Nc3 {[%emt 0:00:19]} h6 {[%emt 0:00:14]} 4. Nf3 {[%emt 0:02:18]} Nf6
{[%emt 0:00:17]} 5. Bd3 {[%emt 0:01:22]} Bb4 {[%emt 0:01:14]} 6. e5 {[%emt 0:
03:39]} Ne4 {[%emt 0:00:22]} 7. Bd2 {[%emt 0:00:27]} Nxd2 {[%emt 0:01:12]} 8.
Qxd2 {[%emt 0:00:19]} c5 {[%emt 0:00:42]} 9. a3 {[%emt 0:02:38]} Qa5 {[%emt 0:
00:38]} 10. O-O {[%emt 0:01:58]} Bxc3 {[%emt 0:00:33]} 11. bxc3 {[%emt 0:01:30]
} c4 {[%emt 0:01:04]} 12. Be2 {[%emt 0:00:41]} Bd7 {[%emt 0:00:52]} 13. Nh4 {
[%emt 0:02:02]} Na6 {[%emt 0:01:45]} 14. f4 {[%emt 0:02:22]} g6 {[%emt 0:05:04]
} 15. g4 {[%emt 0:01:48]} O-O-O {[%emt 0:01:16]} 16. Ng2 {[%emt 0:08:18]} Nc7 {
[%emt 0:01:15]} 17. a4 {[%emt 0:01:09]} Bxa4 {[%emt 0:01:36]} 18. f5 {[%emt 0:
02:33]} gxf5 {[%emt 0:04:32]} 19. gxf5 {[%emt 0:00:36]} b5 {[%emt 0:04:31]} 20.
Bh5 {[%emt 0:05:58]} Rd7 {[%emt 0:07:41]} 21. fxe6 {[%emt 0:01:42]} fxe6 {
[%emt 0:00:37]} 22. Rf6 {[%emt 0:00:07]} Rg7 {[%emt 0:03:11]} 23. Bf7 {[%emt 0:
04:56]} h5 {[%emt 0:07:05]} 24. Kf2 {[%emt 0:10:41]} Rf8 {[%emt 0:09:22]} 25.
Bxh5 {[%emt 0:02:48]} Rh8 {[%emt 0:00:12]} 26. Nf4 {[%emt 0:02:12]} Rgh7 {
[%emt 0:02:06]} 27. Rg1 {[%emt 0:01:58]} Rxh5 {[%emt 0:02:56]} 28. Nxh5 {
[%emt 0:00:06]} Rxh5 {[%emt 0:00:16]} 29. Rg8+ {[%emt 0:00:52]} Kb7 {[%emt 0:
01:06]} 30. Kg3 {[%emt 0:01:12]} Rf5 {[%emt 0:02:43]} 31. h4 {[%emt 0:01:38]}
Bb3 {[%emt 0:02:23]} 32. Rxf5 {[%emt 0:08:25]} exf5 {[%emt 0:00:32]} 33. Kh2 {
[%emt 0:00:15]} Ne6 {[%emt 0:08:10]} 34. h5 {[%emt 0:04:41]} Qc7 {[%emt 0:04:
52]} 35. Qh6 {[%emt 0:04:18]} Qe7 {[%emt 0:03:15]} 36. Qf6 {[%emt 0:00:15]} Qh7
{[%emt 0:00:14]} 37. Rh8 {[%emt 0:02:00]} Qg7 {[%emt 0:02:20]} 38. Qxg7+ {
[%emt 0:01:19]} Nxg7 {[%emt 0:00:08]} 39. h6 {[%emt 0:00:50]} 1-0

[Event "FIDE Womens Grand Swiss 2021"]
[Site "Riga"]
[Date "2021.11.05"]
[Round "9.25"]
[White "Golsta, Madara"]
[Black "Eizaguerri Floris, Maria"]
[Result "1-0"]
[ECO "B42"]
[WhiteElo "2003"]
[BlackElo "2328"]
[Annotator "NA"]
[PlyCount "89"]
[EventDate "2021.10.27"]
[EventType "swiss"]
[EventCountry "LAT"]
[Tiebreak "Cut1 Buchholz+Sonneborn-Berger (Swiss)"]
[SourceTitle "playchess.com"]
[Source "ChessBase"]
[SourceQuality "1"]
[TimeControl "40/6000+30:20/3000+30:900+30"]

1. e4 {[%emt 0:10:03]} c5 {[%emt 0:10:12]} 2. Nf3 {[%emt 0:00:13]} d6 {[%emt 0:
00:06]} 3. d4 {[%emt 0:00:11]} cxd4 {[%emt 0:00:04]} 4. Nxd4 {[%emt 0:00:07]}
Nf6 {[%emt 0:00:02]} 5. Nc3 {[%emt 0:00:12]} a6 {[%emt 0:00:03]} 6. Bd3 {
[%emt 0:00:38]} e6 {[%emt 0:01:48]} 7. O-O {[%emt 0:02:13]} Be7 {[%emt 0:00:11]
} 8. a4 {[%emt 0:08:05]} Nc6 {[%emt 0:02:04]} 9. Nxc6 {[%emt 0:03:31]} bxc6 {
[%emt 0:00:06]} 10. Kh1 {[%emt 0:03:51]} Nd7 {[%emt 0:06:52]} 11. f4 {[%emt 0:
08:15]} Qc7 {[%emt 0:04:25]} 12. Qg4 {[%emt 0:08:57]} Bf6 {[%emt 0:07:01]} 13.
e5 {[%emt 0:06:17]} h5 {[%emt 0:17:11]} 14. Qg3 {[%emt 0:08:37]} h4 {[%emt 0:
00:12]} 15. Qg4 {[%emt 0:00:24]} dxe5 {[%emt 0:00:21]} 16. Ne4 {[%emt 0:01:48]}
Bb7 {[%emt 0:02:01]} 17. h3 {[%emt 0:04:28]} O-O-O {[%emt 0:02:57]} 18. Qe2 {
[%emt 0:00:39]} a5 {[%emt 0:10:32]} 19. Ra3 {[%emt 0:04:43]} Be7 {[%emt 0:14:
08]} 20. Rb3 {[%emt 0:02:34]} f5 {[%emt 0:02:34]} 21. Ba6 {[%emt 0:06:00]} Nb6
{[%emt 0:00:46]} 22. Be3 {[%emt 0:03:14]} c5 {[%emt 0:00:17]} 23. Nxc5 {
[%emt 0:06:51]} Bxc5 {[%emt 0:13:02]} 24. Bxc5 {[%emt 0:02:46]} Qxc5 {[%emt 0:
04:39]} 25. Rc3 {[%emt 0:00:15]} Rd5 {[%emt 0:03:29]} 26. Rxc5+ {[%emt 0:05:18]
} Rxc5 {[%emt 0:00:01]} 27. Qe3 {[%emt 0:00:45]} Rc6 {[%emt 0:02:42]} 28. Bb5 {
[%emt 0:01:10]} Nd5 {[%emt 0:00:38]} 29. Qxe5 {[%emt 0:00:34]} Rxc2 {[%emt 0:
00:59]} 30. Qxe6+ {[%emt 0:01:26]} Kb8 {[%emt 0:00:15]} 31. Qd6+ {[%emt 0:05:
37]} Ka7 {[%emt 0:01:08]} 32. Bd3 {[%emt 0:04:53]} Rxb2 {[%emt 0:01:27]} 33.
Qc5+ {[%emt 0:00:29]} Kb8 {[%emt 0:00:28]} 34. Bc4 {[%emt 0:00:46]} Nc7 {
[%emt 0:01:08]} 35. Rc1 {[%emt 0:00:45]} Rc8 {[%emt 0:03:07]} 36. Bf1 {[%emt 0:
00:18]} Rb4 {[%emt 0:00:40]} 37. Qxa5 {[%emt 0:00:20]} Nd5 {[%emt 0:00:45]} 38.
Rxc8+ {[%emt 0:01:21]} Kxc8 {[%emt 0:00:01]} 39. Qc5+ {[%emt 0:00:25]} Kb8 {
[%emt 0:00:09]} 40. Ba6 {[%emt 0:00:56]} Rb1+ {[%emt 0:01:00]} 41. Kh2 {
[%emt 0:50:07]} Ba8 {[%emt 0:24:59]} 42. Bd3 {[%emt 0:00:00]} Rb2 {[%emt 0:05:
24]} 43. Qf8+ {[%emt 0:00:00]} Ka7 {[%emt 0:00:09]} 44. Qxg7+ {[%emt 0:00:07]}
Rb7 {[%emt 0:00:03]} 45. Qd4+ {[%emt 0:00:00]} 1-0

[Event "FIDE Womens Grand Swiss 2021"]
[Site "Riga"]
[Date "2021.11.06"]
[Round "10.1"]
[White "Lei, Tingjie"]
[Black "Muzychuk, Mariya"]
[Result "1/2-1/2"]
[ECO "D14"]
[WhiteElo "2505"]
[BlackElo "2536"]
[Annotator "ChessBase"]
[PlyCount "84"]
[EventDate "2021.10.27"]
[EventType "swiss"]
[EventCountry "LAT"]
[Tiebreak "Cut1 Buchholz+Sonneborn-Berger (Swiss)"]
[SourceTitle "playchess.com"]
[Source "ChessBase"]
[SourceQuality "1"]
[TimeControl "40/6000+30:20/3000+30:900+30"]

1. d4 {[%emt 0:10:09]} d5 {[%emt 0:10:12]} 2. c4 {[%emt 0:00:18]} c6 {[%emt 0:
00:08]} 3. cxd5 {[%emt 0:00:17]} cxd5 {[%emt 0:00:04]} 4. Nf3 {[%emt 0:00:04]}
Nf6 {[%emt 0:00:43]} 5. Nc3 {[%emt 0:00:08]} Nc6 {[%emt 0:01:47]} 6. Bf4 {
[%emt 0:00:07]} Bf5 {[%emt 0:02:50]} 7. e3 {[%emt 0:00:05]} e6 {[%emt 0:00:23]}
8. Qb3 {[%emt 0:00:04]} Bb4 {[%emt 0:06:04]} 9. Bb5 {[%emt 0:00:07]} O-O {
[%emt 0:08:25]} 10. Bxc6 {[%emt 0:00:06]} Bxc3+ {[%emt 0:00:05]} 11. Qxc3 {
[%emt 0:00:04]} Rc8 {[%emt 0:03:08]} 12. Ne5 {[%emt 0:00:06]} Ng4 {[%emt 0:14:
49]} 13. Nxg4 {[%emt 0:00:08]} Bxg4 {[%emt 0:02:09]} 14. Qb4 {[%emt 0:00:10]}
bxc6 {[%emt 0:13:33]} 15. O-O {[%emt 0:01:08]} Qb6 {[%emt 0:07:49]} 16. Bd6 {
[%emt 0:02:15]} Qxb4 {[%emt 0:04:46]} 17. Bxb4 {[%emt 0:00:04]} Rfd8 {[%emt 0:
00:11]} 18. f3 {[%emt 0:10:42]} Bf5 {[%emt 0:00:17]} 19. Rfc1 {[%emt 0:00:04]}
Rb8 {[%emt 0:02:19]} 20. a3 {[%emt 0:04:29]} Rdc8 {[%emt 0:00:43]} 21. Rc3 {
[%emt 0:00:40]} f6 {[%emt 0:09:15]} 22. Rac1 {[%emt 0:02:23]} Rb6 {[%emt 0:00:
19]} 23. b3 {[%emt 0:13:00]} e5 {[%emt 0:03:41]} 24. Bc5 {[%emt 0:09:52]} Rb7 {
[%emt 0:00:12]} 25. Bd6 {[%emt 0:01:23]} exd4 {[%emt 0:10:23]} 26. exd4 {
[%emt 0:00:04]} Bd7 {[%emt 0:00:52]} 27. Re1 {[%emt 0:01:01]} Re8 {[%emt 0:00:
14]} 28. Rce3 {[%emt 0:00:40]} Rxe3 {[%emt 0:00:44]} 29. Rxe3 {[%emt 0:00:03]}
Bf5 {[%emt 0:00:15]} 30. b4 {[%emt 0:01:40]} Kf7 {[%emt 0:01:16]} 31. Kf2 {
[%emt 0:02:06]} g5 {[%emt 0:02:05]} 32. g4 {[%emt 0:00:24]} Bc2 {[%emt 0:00:13]
} 33. Kg3 {[%emt 0:02:21]} a6 {[%emt 0:02:14]} 34. h4 {[%emt 0:00:34]} h6 {
[%emt 0:00:18]} 35. Rc3 {[%emt 0:16:38]} Ba4 {[%emt 0:00:08]} 36. f4 {[%emt 0:
00:09]} Rd7 {[%emt 0:01:36]} 37. Bc5 {[%emt 0:00:08]} gxf4+ {[%emt 0:01:15]}
38. Kxf4 {[%emt 0:00:10]} Rd8 {[%emt 0:00:04]} 39. Re3 {[%emt 0:01:00]} Re8 {
[%emt 0:00:12]} 40. Rxe8 {[%emt 0:00:21]} Kxe8 {[%emt 0:00:02]} 41. g5 {
[%emt 0:50:14]} fxg5+ {[%emt 0:50:15]} 42. hxg5 {[%emt 0:00:03]} hxg5+ {
[%emt 0:00:04]} 1/2-1/2

[Event "FIDE Womens Grand Swiss 2021"]
[Site "Riga"]
[Date "2021.11.06"]
[Round "10.2"]
[White "Harika, Dronavalli"]
[Black "Paehtz, Elisabeth"]
[Result "1/2-1/2"]
[ECO "B22"]
[WhiteElo "2511"]
[BlackElo "2475"]
[Annotator "ChessBase"]
[PlyCount "62"]
[EventDate "2021.10.27"]
[EventType "swiss"]
[EventCountry "LAT"]
[Tiebreak "Cut1 Buchholz+Sonneborn-Berger (Swiss)"]
[SourceTitle "playchess.com"]
[Source "ChessBase"]
[SourceQuality "1"]
[TimeControl "40/6000+30:20/3000+30:900+30"]

1. e4 {[%emt 0:10:38]} c5 {[%emt 0:10:04]} 2. c3 {[%emt 0:00:05]} Nf6 {[%emt 0:
05:09]} 3. e5 {[%emt 0:00:32]} Nd5 {[%emt 0:00:04]} 4. Nf3 {[%emt 0:00:25]} e6
{[%emt 0:00:53]} 5. g3 {[%emt 0:07:46]} Nc6 {[%emt 0:00:45]} 6. Bg2 {[%emt 0:
00:31]} d6 {[%emt 0:00:19]} 7. exd6 {[%emt 0:00:12]} Qxd6 {[%emt 0:00:17]} 8.
O-O {[%emt 0:03:01]} Be7 {[%emt 0:02:59]} 9. d4 {[%emt 0:04:12]} O-O {[%emt 0:
03:30]} 10. Na3 {[%emt 0:09:03]} cxd4 {[%emt 0:03:53]} 11. Nb5 {[%emt 0:00:41]}
Qc5 {[%emt 0:00:27]} 12. Nbxd4 {[%emt 0:00:37]} Nxd4 {[%emt 0:01:21]} 13. Qxd4
{[%emt 0:00:39]} Qxd4 {[%emt 0:02:46]} 14. Nxd4 {[%emt 0:00:05]} Rd8 {[%emt 0:
01:21]} 15. Re1 {[%emt 0:07:02]} Bf6 {[%emt 0:09:16]} 16. Nb5 {[%emt 0:07:05]}
a6 {[%emt 0:06:40]} 17. Bxd5 {[%emt 0:00:34]} axb5 {[%emt 0:00:03]} 18. Bg2 {
[%emt 0:06:59]} b4 {[%emt 0:16:13]} 19. cxb4 {[%emt 0:00:17]} Rd4 {[%emt 0:00:
03]} 20. b5 {[%emt 0:00:18]} Rb4 {[%emt 0:00:06]} 21. Bf1 {[%emt 0:00:14]} Bd7
{[%emt 0:00:25]} 22. a3 {[%emt 0:00:11]} Bxb2 {[%emt 0:02:48]} 23. Bxb2 {
[%emt 0:02:34]} Rxb2 {[%emt 0:00:04]} 24. a4 {[%emt 0:00:04]} Rb4 {[%emt 0:07:
04]} 25. Red1 {[%emt 0:01:43]} Be8 {[%emt 0:00:26]} 26. Bg2 {[%emt 0:01:08]}
Rb8 {[%emt 0:06:51]} 27. Rd6 {[%emt 0:04:01]} b6 {[%emt 0:08:01]} 28. Bc6 {
[%emt 0:03:12]} Kf8 {[%emt 0:00:54]} 29. Bxe8 {[%emt 0:02:30]} Kxe8 {[%emt 0:
00:06]} 30. Rc1 {[%emt 0:03:14]} Ke7 {[%emt 0:01:05]} 31. Rcc6 {[%emt 0:05:20]}
Rxa4 {[%emt 0:00:13]} 1/2-1/2

[Event "FIDE Womens Grand Swiss 2021"]
[Site "Riga"]
[Date "2021.11.06"]
[Round "10.3"]
[White "Javakhishvili, Lela"]
[Black "Zhu, Jiner"]
[Result "0-1"]
[ECO "E69"]
[WhiteElo "2446"]
[BlackElo "2455"]
[Annotator "ChessBase"]
[PlyCount "104"]
[EventDate "2021.10.27"]
[EventType "swiss"]
[EventCountry "LAT"]
[Tiebreak "Cut1 Buchholz+Sonneborn-Berger (Swiss)"]
[SourceTitle "playchess.com"]
[Source "ChessBase"]
[SourceQuality "1"]
[TimeControl "40/6000+30:20/3000+30:900+30"]

1. d4 {[%emt 0:10:04]} Nf6 {[%emt 0:10:06]} 2. c4 {[%emt 0:00:07]} g6 {[%emt 0:
00:07]} 3. g3 {[%emt 0:00:21]} Bg7 {[%emt 0:00:08]} 4. Bg2 {[%emt 0:00:06]} O-O
{[%emt 0:00:26]} 5. Nc3 {[%emt 0:00:08]} c6 {[%emt 0:00:26]} 6. e4 {[%emt 0:01:
46]} d6 {[%emt 0:09:45]} 7. Nf3 {[%emt 0:00:45]} e5 {[%emt 0:00:52]} 8. O-O {
[%emt 0:00:43]} Nbd7 {[%emt 0:02:06]} 9. h3 {[%emt 0:00:58]} a5 {[%emt 0:07:16]
} 10. Be3 {[%emt 0:03:56]} Re8 {[%emt 0:00:28]} 11. Qc2 {[%emt 0:07:03]} exd4 {
[%emt 0:01:52]} 12. Nxd4 {[%emt 0:04:54]} Nc5 {[%emt 0:01:06]} 13. Rfe1 {
[%emt 0:02:27]} a4 {[%emt 0:02:01]} 14. Rad1 {[%emt 0:00:36]} Nfd7 {[%emt 0:05:
46]} 15. Nde2 {[%emt 0:03:59]} Qa5 {[%emt 0:06:45]} 16. Rxd6 {[%emt 0:05:16]}
Qb4 {[%emt 0:00:50]} 17. a3 {[%emt 0:17:41]} Qxc4 {[%emt 0:00:37]} 18. Nc1 {
[%emt 0:01:23]} Bxc3 {[%emt 0:20:36]} 19. Bf1 {[%emt 0:05:24]} Qxe4 {[%emt 0:
00:15]} 20. Qxc3 {[%emt 0:00:56]} Ne5 {[%emt 0:00:20]} 21. Bd2 {[%emt 0:08:19]}
Bxh3 {[%emt 0:29:35]} 22. Rxe4 {[%emt 0:03:20]} Nxe4 {[%emt 0:00:06]} 23. Bxh3
{[%emt 0:02:53]} Nxc3 {[%emt 0:00:05]} 24. Bxc3 {[%emt 0:00:04]} Rad8 {[%emt 0:
00:07]} 25. Rxd8 {[%emt 0:01:54]} Rxd8 {[%emt 0:00:05]} 26. Bxe5 {[%emt 0:00:
42]} Rd1+ {[%emt 0:00:06]} 27. Kg2 {[%emt 0:00:03]} Rxc1 {[%emt 0:00:06]} 28.
Bc8 {[%emt 0:01:43]} b5 {[%emt 0:03:27]} 29. Bd7 {[%emt 0:02:34]} Rc4 {[%emt 0:
03:53]} 30. f4 {[%emt 0:04:28]} Kf8 {[%emt 0:01:25]} 31. Bf6 {[%emt 0:00:46]}
Rc2+ {[%emt 0:00:45]} 32. Kf3 {[%emt 0:04:27]} Rd2 {[%emt 0:00:05]} 33. Bh3 {
[%emt 0:01:30]} c5 {[%emt 0:02:25]} 34. Ke3 {[%emt 0:01:31]} Rd1 {[%emt 0:00:
28]} 35. Ke2 {[%emt 0:02:34]} Rg1 {[%emt 0:00:50]} 36. Bd7 {[%emt 0:04:18]} b4
{[%emt 0:01:09]} 37. axb4 {[%emt 0:00:46]} cxb4 {[%emt 0:00:14]} 38. Bxa4 {
[%emt 0:01:28]} Rxg3 {[%emt 0:00:08]} 39. b3 {[%emt 0:01:51]} h5 {[%emt 0:01:
21]} 40. Kf2 {[%emt 0:03:59]} Rd3 {[%emt 0:00:28]} 41. Kg2 {[%emt 0:25:50]} Rd6
{[%emt 0:23:16]} 42. Be5 {[%emt 0:03:02]} Rd2+ {[%emt 0:00:09]} 43. Kf3 {
[%emt 0:02:33]} Ke7 {[%emt 0:00:13]} 44. Ke3 {[%emt 0:00:40]} Rh2 {[%emt 0:01:
43]} 45. Kf3 {[%emt 0:00:53]} Rh3+ {[%emt 0:00:18]} 46. Kg2 {[%emt 0:02:03]}
Rd3 {[%emt 0:00:10]} 47. Bc7 {[%emt 0:00:31]} Kf6 {[%emt 0:04:36]} 48. Ba5 {
[%emt 0:00:30]} Rd4 {[%emt 0:04:10]} 49. Bc7 {[%emt 0:02:37]} Rd2+ {[%emt 0:01:
00]} 50. Kf3 {[%emt 0:01:07]} Rd3+ {[%emt 0:00:20]} 51. Ke2 {[%emt 0:00:56]}
Rd5 {[%emt 0:01:36]} 52. Ba5 {[%emt 0:04:07]} Rxa5 {[%emt 0:00:11]} 0-1

[Event "FIDE Womens Grand Swiss 2021"]
[Site "Riga"]
[Date "2021.11.06"]
[Round "10.4"]
[White "Cori T., Deysi"]
[Black "Dzagnidze, Nana"]
[Result "1-0"]
[ECO "E49"]
[WhiteElo "2382"]
[BlackElo "2524"]
[Annotator "ChessBase"]
[PlyCount "75"]
[EventDate "2021.10.27"]
[EventType "swiss"]
[EventCountry "LAT"]
[Tiebreak "Cut1 Buchholz+Sonneborn-Berger (Swiss)"]
[SourceTitle "playchess.com"]
[Source "ChessBase"]
[SourceQuality "1"]
[TimeControl "40/6000+30:20/3000+30:900+30"]

1. d4 {[%emt 0:10:24]} Nf6 {[%emt 0:10:06]} 2. c4 {[%emt 0:00:47]} e6 {[%emt 0:
00:11]} 3. Nc3 {[%emt 0:00:48]} Bb4 {[%emt 0:02:54]} 4. e3 {[%emt 0:01:50]} O-O
{[%emt 0:00:44]} 5. Bd3 {[%emt 0:00:24]} d5 {[%emt 0:00:50]} 6. a3 {[%emt 0:06:
21]} Bxc3+ {[%emt 0:01:18]} 7. bxc3 {[%emt 0:00:02]} c5 {[%emt 0:00:38]} 8. Ne2
{[%emt 0:01:11]} b6 {[%emt 0:03:26]} 9. O-O {[%emt 0:04:49]} Ba6 {[%emt 0:04:
10]} 10. cxd5 {[%emt 0:05:01]} exd5 {[%emt 0:00:55]} 11. a4 {[%emt 0:09:07]}
Bxd3 {[%emt 0:23:25]} 12. Qxd3 {[%emt 0:00:02]} Nbd7 {[%emt 0:03:56]} 13. Nf4 {
[%emt 0:09:30]} Re8 {[%emt 0:00:53]} 14. Ba3 {[%emt 0:09:41]} Rc8 {[%emt 0:04:
42]} 15. Rac1 {[%emt 0:04:31]} c4 {[%emt 0:12:41]} 16. Qc2 {[%emt 0:01:03]} g5
{[%emt 0:10:00]} 17. Ne2 {[%emt 0:05:10]} Rc6 {[%emt 0:00:40]} 18. Rce1 {
[%emt 0:04:45]} Nf8 {[%emt 0:07:29]} 19. Bc1 {[%emt 0:09:08]} Ng6 {[%emt 0:04:
13]} 20. f3 {[%emt 0:02:55]} h5 {[%emt 0:05:59]} 21. Ng3 {[%emt 0:06:24]} h4 {
[%emt 0:00:53]} 22. Nf5 {[%emt 0:00:01]} Rce6 {[%emt 0:04:05]} 23. e4 {[%emt 0:
13:02]} Nh5 {[%emt 0:00:06]} 24. g3 {[%emt 0:01:48]} Kh7 {[%emt 0:06:15]} 25.
Kf2 {[%emt 0:02:35]} h3 {[%emt 0:00:43]} 26. e5 {[%emt 0:00:36]} f6 {[%emt 0:
00:15]} 27. Nd6 {[%emt 0:00:23]} Rf8 {[%emt 0:01:36]} 28. Qf5 {[%emt 0:00:34]}
Ng7 {[%emt 0:00:14]} 29. Qxh3+ {[%emt 0:00:01]} Kg8 {[%emt 0:00:03]} 30. Nf5 {
[%emt 0:00:20]} Nxf5 {[%emt 0:01:06]} 31. Qxf5 {[%emt 0:00:01]} Kf7 {[%emt 0:
00:14]} 32. Bxg5 {[%emt 0:00:38]} Qd7 {[%emt 0:01:01]} 33. Bxf6 {[%emt 0:00:16]
} Rg8 {[%emt 0:00:11]} 34. Qh5 {[%emt 0:01:39]} Qxa4 {[%emt 0:00:08]} 35. f4 {
[%emt 0:00:41]} Qc2+ {[%emt 0:00:04]} 36. Re2 {[%emt 0:00:33]} Qxc3 {[%emt 0:
00:02]} 37. f5 {[%emt 0:00:07]} Qxd4+ {[%emt 0:01:05]} 38. Kg2 {[%emt 0:00:02]}
1-0

[Event "FIDE Womens Grand Swiss 2021"]
[Site "Riga"]
[Date "2021.11.06"]
[Round "10.5"]
[White "Pogonina, Natalija"]
[Black "Kosteniuk, Alexandra"]
[Result "1/2-1/2"]
[ECO "D73"]
[WhiteElo "2467"]
[BlackElo "2518"]
[Annotator "ChessBase"]
[PlyCount "61"]
[EventDate "2021.10.27"]
[EventType "swiss"]
[EventCountry "LAT"]
[Tiebreak "Cut1 Buchholz+Sonneborn-Berger (Swiss)"]
[SourceTitle "playchess.com"]
[Source "ChessBase"]
[SourceQuality "1"]
[TimeControl "40/6000+30:20/3000+30:900+30"]

1. d4 {[%emt 0:10:04]} Nf6 {[%emt 0:10:05]} 2. g3 {[%emt 0:00:09]} d5 {[%emt 0:
01:02]} 3. Bg2 {[%emt 0:00:16]} c5 {[%emt 0:04:22]} 4. Nf3 {[%emt 0:00:53]}
cxd4 {[%emt 0:09:21]} 5. O-O {[%emt 0:00:42]} g6 {[%emt 0:00:25]} 6. Nxd4 {
[%emt 0:05:41]} Bg7 {[%emt 0:01:04]} 7. c4 {[%emt 0:06:20]} O-O {[%emt 0:07:15]
} 8. cxd5 {[%emt 0:03:27]} Nxd5 {[%emt 0:00:57]} 9. Nb5 {[%emt 0:03:20]} Be6 {
[%emt 0:01:26]} 10. Bxd5 {[%emt 0:17:33]} Bxd5 {[%emt 0:00:46]} 11. N1c3 {
[%emt 0:00:15]} Bxc3 {[%emt 0:06:31]} 12. Nxc3 {[%emt 0:00:27]} Bc6 {[%emt 0:
00:19]} 13. Bh6 {[%emt 0:03:57]} Qxd1 {[%emt 0:16:53]} 14. Rfxd1 {[%emt 0:00:
32]} Rc8 {[%emt 0:00:15]} 15. Nd5 {[%emt 0:12:44]} Bxd5 {[%emt 0:01:57]} 16.
Rxd5 {[%emt 0:00:05]} f6 {[%emt 0:00:14]} 17. Rc1 {[%emt 0:02:42]} Nc6 {
[%emt 0:06:45]} 18. Be3 {[%emt 0:04:10]} Kf7 {[%emt 0:05:49]} 19. Rd7 {[%emt 0:
06:50]} Rab8 {[%emt 0:03:54]} 20. Bf4 {[%emt 0:03:11]} Rd8 {[%emt 0:02:19]} 21.
Rc7 {[%emt 0:03:12]} g5 {[%emt 0:01:51]} 22. R7xc6 {[%emt 0:04:14]} gxf4 {
[%emt 0:00:14]} 23. Rc7 {[%emt 0:01:27]} fxg3 {[%emt 0:03:31]} 24. hxg3 {
[%emt 0:00:05]} Rd2 {[%emt 0:01:04]} 25. R1c2 {[%emt 0:00:12]} Rxc2 {[%emt 0:
00:32]} 26. Rxc2 {[%emt 0:00:04]} Rd8 {[%emt 0:00:12]} 27. Rc7 {[%emt 0:04:48]}
Rd2 {[%emt 0:00:37]} 28. Rxb7 {[%emt 0:00:24]} Rxe2 {[%emt 0:00:04]} 29. Rxa7 {
[%emt 0:00:35]} Rxb2 {[%emt 0:00:04]} 30. Kg2 {[%emt 0:01:29]} Kg6 {[%emt 0:02:
08]} 31. Rxe7 {[%emt 0:03:56]} 1/2-1/2